Cogmind - Beta 13 @@@ ROGUE MODE // 2024.07.07 @ 22:02:05 Player: Spoodle Result: Destroyed by D-53 Grenadier with Mini Grenade Launcher Performance ------------- Evolutions (0) 0 Regions Visited (4) 800 Robots Destroyed (41) 205 Value Destroyed (661) 661 Prototype IDs (6) 120 Alien Tech Used (0) 0 Bonus (0) 0 TOTAL SCORE: 1786 Bonus ------- None Cogmind --------- Core Integrity 0/250 Matter 206/300 Energy 93/100 System Corruption 0% Temperature Cool (3) Movement Treading (240) Ox1 Location -9/Mines Parts ------- > --- POWER (1) -------- (None) > --- PROPULSION (2) --- Improved Treads Improved Treads > --- UTILITY (2) ------ High-capacity Storage Unit > --- WEAPON (2) ------- Improved Light Cannon Improved Light Cannon > --- INVENTORY (20) --- Light Ion Engine Improved Treads Improved Treads Large Battery (200) High-capacity Matter Pod (200) Seismic Detector ECM Suite High-powered Tractor Beam Splice Drone Bay Light EM Pulse Cannon Beam Cannon Beam Cannon Improved Light Cannon Mini Grenade Launcher Mini Grenade Launcher Mining Laser Peak State ------------ > --- POWER ------------ Light Ion Engine > --- PROPULSION ------- Light Treads Light Treads > --- UTILITY ---------- Heat Sink High-capacity Storage Unit > --- WEAPON ----------- Light EM Pulse Cannon Light EM Pulse Cannon > --- INVENTORY -------- Light Ion Engine Improved Treads Improved Treads Improved Treads Improved Treads Large Battery High-capacity Matter Pod Seismic Detector ECM Suite High-powered Tractor Beam Splice Drone Bay Light EM Pulse Cannon Beam Cannon Beam Cannon Improved Light Cannon Improved Light Cannon Improved Light Cannon Mini Grenade Launcher Mini Grenade Launcher Mining Laser [Rating: 12] Favorites ----------- Power Light Ion Engine Engine Light Ion Engine Propulsion Light Treads Treads Light Treads Leg Aluminum Leg Utility Heat Sink Device Heat Sink Storage High-capacity Storage Unit Processor Targeting Computer Weapon Beam Cannon Energy Cannon Beam Cannon Ballistic Gun Light Assault Rifle Ballistic Cannon Improved Light Cannon Launcher Mini Grenade Launcher Build | -11 -10 -10 -10 -9 ------- Run | Yrd Mat Min Exi Min Slots Evolved . | . . . . . Power . | . . . . . Propulsion . | . . . . . Utility . | . . . . . Weapon . | . . . . . Parts Attached 28 | 8 13 1 . 6 Power 2 | 1 1 . . . Engine 2 | 1 1 . . . Core . | . . . . . Reactor . | . . . . . Propulsion 8 | 3 3 . . 2 Treads 7 | 2 3 . . 2 Leg 1 | 1 . . . . Wheel . | . . . . . Hover . | . . . . . Flight . | . . . . . Utility 5 | 2 3 . . . Device 2 | 1 1 . . . Storage 2 | 1 1 . . . Processor 1 | . 1 . . . Hackware . | . . . . . Protection . | . . . . . Artifact . | . . . . . Weapon 13 | 2 6 1 . 4 Energy Gun . | . . . . . Energy Cannon 7 | . 5 . . 2 Ballistic Gun 3 | 2 1 . . . Ballistic Cannon 2 | . . . . 2 Launcher 1 | . . 1 . . Special Weapon . | . . . . . Impact Weapon . | . . . . . Slashing Weapon . | . . . . . Piercing Weapon . | . . . . . Special Melee Weapon . | . . . . . Unidentified Prototypes . | . . . . . Parts Lost 8 | . 2 . . 6 Power 2 | . 1 . . 1 Propulsion 2 | . . . . 2 Utility 1 | . . . . 1 Weapon 3 | . 1 . . 2 Highest Loss Streak 6 | . 1 . . 6 To Critical Strikes . | . . . . . Average Slot Usage (%) 99 | . 99 100 100 97 Engine 13 | . 14 14 14 13 Treads 27 | . 27 28 28 27 Device 13 | . 13 14 14 13 Storage 14 | . 14 14 14 14 Energy Cannon 21 | . 25 19 14 13 Ballistic Gun 1 | . 2 . . . Launcher 4 | . . 8 14 12 Naked Turns . | . . . . . Heaviest Build 50 | 11 50 50 48 48 Greatest Support 40 | 40 40 40 40 40 Greatest Overweight (x) 16 | . 16 1 1 1 Average Overweight (x) . | . . 1 1 1 Largest Inventory Capacity 20 | 8 20 20 20 20 Average Capacity 18 | 7 18 20 20 20 Most Carried 20 | 6 20 20 20 20 Average Carried 16 | 3 15 19 20 19 Final Capacity 20 | 8 20 20 20 20 Final Carried 20 | 6 20 20 20 16 Class Distribution -------------------- 100% | Mutant Dominant Class ---------------- Mutant | -10/Materials Mutant | -10/Mines Mutant | -10/Exiles Mutant | -9/Mines Resources | -11 -10 -10 -10 -9 ----------- Run | Yrd Mat Min Exi Min Matter Collected 691 | 305 338 48 . . Remotely . | . . . . . Salvage Created 1090 | 200 805 58 . 27 Parts 86 | 19 50 14 . 3 Haulers Intercepted 1 | . 1 . . . Recyclers Shooed 2 | . 1 1 . . Parts Field Recycled . | . . . . . Retrieved Matter . | . . . . . Parts Self-Destructed . | . . . . . Prevented . | . . . . . Kills | -11 -10 -10 -10 -9 ------- Run | Yrd Mat Min Exi Min Combat Hostiles Destroyed 26 | . 16 9 . 1 Guns 1 | . 1 . . . Cannons 16 | . 15 . . 1 AOE 9 | . . 9 . . Classes Destroyed 8 | 3 4 . . 1 Worker 3 | 2 1 . . . Tunneler 4 | 4 . . . . Hauler 1 | . 1 . . . Recycler 4 | 1 3 . . . Watcher 3 | . 3 . . . Swarmer 15 | . 6 9 . . Grunt 10 | . 10 . . . Demolisher 1 | . . . . 1 Best Kill Streak 5 | 2 5 3 . 1 Combat Bots Only 5 | . 5 3 . 1 Max Kills in Single Turn 3 | 1 1 3 . 1 Gunslinging . | . . . . . Exploded 3 | . . 3 . . Melee . | . . . . . Uniques/NPCs Destroyed . | . . . . . Combat | -11 -10 -10 -10 -9 -------- Run | Yrd Mat Min Exi Min Hostile Shots Fired 87 | . 59 8 . 20 Missed 21 | . 17 4 . . Damage Taken 1420 | . 518 85 . 817 Core 262 | . 80 9 . 173 Absorbed by Shields . | . . . . . Core Remaining (%) 100 | 100 . . . . Volleys Fired 77 | 15 49 4 . 9 Largest 2 | 2 2 1 . 2 Hottest 120 | 40 120 30 . 112 Shots Fired 145 | 30 93 4 . 18 Gun 36 | 30 6 . . . Cannon 105 | . 87 . . 18 Launcher 4 | . . 4 . . Special . | . . . . . Kinetic 52 | 30 6 . . 16 Thermal 87 | . 87 . . . Explosive 4 | . . 4 . . Electromagnetic 2 | . . . . 2 Robot Hit Streak 12 | 9 11 12 . 3 Robot Miss Streak 3 | 2 3 1 . 3 Penetration Max . | . . . . . Secondary Targets . | . . . . . Shots Hit Robots 83 | 20 54 2 . 7 Core Hits 47 | 13 24 8 . 2 Critical Kills . | . . . . . Critical Parts Destroyed . | . . . . . Critical Strikes . | . . . . . Melee Attacks . | . . . . . Impact . | . . . . . Slashing . | . . . . . Piercing . | . . . . . Sneak Attacks . | . . . . . Combat Hostiles . | . . . . . Follow-up Attacks . | . . . . . Damage Inflicted 1774 | 158 976 491 . 149 Guns 192 | 157 35 . . . Cannons 1088 | . 939 . . 149 Explosions 479 | . . 479 . . Melee . | . . . . . Ramming 15 | 1 2 12 . . Kinetic 321 | 157 35 . . 129 Thermal 939 | . 939 . . . Explosive 479 | . . 479 . . Electromagnetic 20 | . . . . 20 Impact . | . . . . . Slashing . | . . . . . Piercing . | . . . . . Highest Corruption . | . . . . . Average Corruption . | . . . . . Corruption Purged . | . . . . . Corruption Blocked . | . . . . . Overload Shots . | . . . . . Overflow Damage 33 | . . 33 . . Projectiles . | . . . . . Explosions 33 | . . 33 . . Melee . | . . . . . Knockbacks 1 | . . . . 1 Impact . | . . . . . Kinetic 1 | . . . . 1 Secondary . | . . . . . Self-Inflicted Damage 52 | . . 52 . . Shots 2 | . . 2 . . Rammed 3 | 1 1 1 . . Targets Rammed 4 | 1 2 1 . . Kicked . | . . . . . Crushed 1 | . 1 . . . Highest Temperature 321 | . 321 . . 21 Average Temperature 70 | . 79 . . 9 Received Heat Transfer 228 | . 228 . . . Effects 1 | . 1 . . . Interference 1 | . 1 . . . Siege Activations . | . . . . . Robots Corrupted . | . . . . . Combat Hostiles . | . . . . . Parts Fried . | . . . . . Impact Corruptions . | . . . . . Robots Melted . | . . . . . Combat Hostiles . | . . . . . Parts Melted 4 | . 4 . . . Heat Transferred 1961 | . 1961 . . . Parts Sabotaged . | . . . . . Parts Stolen . | . . . . . Parts Stripped . | . . . . . Power Chain Reactions . | . . . . . Alert | -11 -10 -10 -10 -9 ------- Run | Yrd Mat Min Exi Min Peak Influence 156 | 35 145 156 . 31 Initial 52 | . 22 52 . . Average 50 | 14 50 90 . 1 Maximum Alert Level . | . . . . . Low Security (%) 100 | 100 100 100 . 100 Level 1 . | . . . . . Level 2 . | . . . . . Level 3 . | . . . . . Level 4 . | . . . . . Level 5 . | . . . . . High Security . | . . . . . Max Security . | . . . . . Squads Dispatched 5 | . 5 . . . Investigation 5 | . 5 . . . Extermination . | . . . . . Reinforcement . | . . . . . Assault . | . . . . . Garrison . | . . . . . Intercept . | . . . . . Searches Triggered . | . . . . . Construction Impeded . | . . . . . Haulers Reinforced . | . . . . . Active Scanning Responses . | . . . . . Cargo Convoy Interrupts . | . . . . . Stealth | -11 -10 -10 -10 -9 --------- Run | Yrd Mat Min Exi Min Distress Signals 2 | . 1 . . 1 Communications Jammed . | . . . . . Distress Signals . | . . . . . Times Spotted 36 | . 25 9 . 2 Peak Tracking Total 5 | . 5 3 . 2 Tactical Retreats 1 | . 1 . . . Traps | -11 -10 -10 -10 -9 ------- Run | Yrd Mat Min Exi Min Traps Triggered 1 | . 1 . . . Indirectly . | . . . . . Trap Hack Attempts . | . . . . . Triggered . | . . . . . Disarmed . | . . . . . Reprogrammed . | . . . . . Reused . | . . . . . Traps Extracted . | . . . . . Installed . | . . . . . Triggered . | . . . . . Machines | -11 -10 -10 -10 -9 ---------- Run | Yrd Mat Min Exi Min Machines Disabled . | . . . . . Max in Single Turn . | . . . . . Machines Repaired . | . . . . . Machines Dismantled . | . . . . . Machines Sabotaged . | . . . . . Overloaded Fab Kills . | . . . . . Hacking | -11 -10 -10 -10 -9 --------- Run | Yrd Mat Min Exi Min Machines Accessed 12 | . 10 1 1 . Terminals 8 | . 8 . . . Fabricators . | . . . . . Repair Stations . | . . . . . Recycling Units 2 | . 2 . . . Scanalyzers . | . . . . . Garrison Access . | . . . . . Total Hacks 32 | . 30 1 1 . Successful 16 | . 14 1 1 . Failed 16 | . 16 . . . Catastrophic . | . . . . . Database Lockouts . | . . . . . Manual 18 | . 18 . . . Terminals 26 | . 26 . . . Fabricators . | . . . . . Repair Stations . | . . . . . Recycling Units 4 | . 4 . . . Scanalyzers . | . . . . . Garrison Access . | . . . . . Terminal Hacks 9 | . 7 1 1 . Record 1 | . . . 1 . Robot Analysis 3 | . 3 . . . Prototype ID Bank 3 | . 3 . . . Open Door 1 | . . 1 . . Locate Traps 1 | . 1 . . . Fabricator Hacks . | . . . . . Repair Station Hacks . | . . . . . Recycling Unit Hacks 2 | . 2 . . . Report Inventory 2 | . 2 . . . Scanalyzer . | . . . . . Garrison Access Hacks . | . . . . . Unauthorized Hacks 5 | . 5 . . . Terminals 3 | . 3 . . . Botnet 2 | . 2 . . . Operators 1 | . 1 . . . Fabricators . | . . . . . Repair Stations . | . . . . . Recycling Units 2 | . 2 . . . Tunnel 2 | . 2 . . . Scanalyzers . | . . . . . Garrison Access . | . . . . . Data Cores Recovered . | . . . . . Used . | . . . . . Hacking Detections 7 | . 7 . . . Full Trace Events 4 | . 4 . . . Feedback Events . | . . . . . Feedback Blocked . | . . . . . Robot Schematics Acquired . | . . . . . Robots Built . | . . . . . Authchips . | . . . . . Time . | . . . . . Total Robot Build Rating . | . . . . . Part Schematics Acquired . | . . . . . Parts Built . | . . . . . Authchips . | . . . . . Time . | . . . . . Total Part Build Rating . | . . . . . Parts Repaired . | . . . . . Time . | . . . . . Parts Recycled . | . . . . . Recycled Matter . | . . . . . Retrieved Matter . | . . . . . Retrieved Components . | . . . . . Parts Scanalyzed . | . . . . . Part Schematics Acquired . | . . . . . Parts Damaged . | . . . . . Bothacking | -11 -10 -10 -10 -9 ------------ Run | Yrd Mat Min Exi Min Used RIF Installer . | . . . . . Robots Hacked . | . . . . . Non-combat . | . . . . . Combat . | . . . . . Robot Hacks Applied . | . . . . . Relay Couplers Released . | . . . . . Fabnet Peak Effective % . | . . . . . Robots Rewired . | . . . . . Allies Hacked . | . . . . . Hacks Repelled . | . . . . . Allies | -11 -10 -10 -10 -9 -------- Run | Yrd Mat Min Exi Min Total Allies 3 | . . . . 3 Largest Group 3 | . . . . 3 Highest-Rated Group 40 | . . . . 40 Highest-Rated Ally 16 | . . . . 16 Total Orders . | . . . . . Ally Attacks 5 | . . . . 5 Total Damage 58 | . . . . 58 Kills . | . . . . . Allies Corrupted . | . . . . . Allies Melted . | . . . . . Intel | -11 -10 -10 -10 -9 ------- Run | Yrd Mat Min Exi Min Robot Analysis Total 3 | . 3 . . . Derelict Logs Recovered 2 | . . 1 . 1 Drone Launches . | . . . . . Drone Recoveries . | . . . . . Exploration | -11 -10 -10 -10 -9 ------------- Run | Yrd Mat Min Exi Min Turns Passed 4318 | 255 2601 638 478 346 Spaces Moved 1740 | 120 1029 261 200 130 Core 6 | 5 1 . . . Treads 1733 | 114 1028 261 200 130 Legs 1 | 1 . . . . Wheels . | . . . . . Hover . | . . . . . Flight . | . . . . . Fastest Speed 50 | 50 160 240 240 240 Average Speed 228 | 155 231 240 240 240 Slowest Speed 850 | 160 850 240 240 240 Overloaded Moves . | . . . . . Propulsion Burnouts . | . . . . . Robots Hopped . | . . . . . Cave-ins Triggered . | . . . . . Exploration Rate (%) 49 | 7 95 56 60 28 Regions Visited 4 Branch Regions 3 Pre-discovered Areas 4 | . 2 1 1 . Known Exits Taken . | . . . . . Unknown Exits Taken 4 | 1 1 1 1 . Scrap Searched 2 | . . . . 2 Spaces Dug . | . . . . . Terrain Destroyed 35 | . . 30 . 5 Melee . | . . . . . Projectile 5 | . . . . 5 AOE 30 | . . 30 . . Terrain Rammed . | . . . . . Walls Destroyed . | . . . . . Machines Disabled . | . . . . . Actions | -11 -10 -10 -10 -9 --------- Run | Yrd Mat Min Exi Min Total 1935 | 162 1161 268 199 145 Wait 32 | 6 26 . . . Move 1736 | 119 1028 260 199 130 Hop . | . . . . . Pick Up 36 | 9 26 1 . . Fast Attach 16 | 8 8 . . . Attach 6 | . 2 . . 4 Detach 1 | . 1 . . . Swap 6 | . 3 1 . 2 Drop 21 | 4 16 1 . . Fire 77 | 15 49 4 . 9 Melee . | . . . . . Ram . | . . . . . Kick . | . . . . . Crush 4 | 1 2 1 . . Escape Stasis . | . . . . . Rewire . | . . . . . Trap . | . . . . . Miscellaneous . | . . . . . Route ------- -11/Scrapyard -10/Materials (discovered 5 exits: [*Mat x2] / *Min x2 / [*Sub]) -10/Mines (discovered 3 exits: [*Mat x2] / *Exi) -10/Exiles -9/Mines (discovered 1 exit: [*Mat]) History --------- Turn | Location | Event 2 | -11/Scrapyard | Discovered new exit (range 16) 256 | -11/Scrapyard | Entered Materials 300 | -10/Materials | Build established: Mutant 907 | -10/Materials | Discovered new exit (range 16) 1224 | -10/Materials | Discovered new exit (range 3) 1465 | -10/Materials | Discovered new exit (range 9) 1885 | -10/Materials | Discovered new exit (range 7) 2246 | -10/Materials | Discovered new exit (range 10) 2857 | -10/Materials | Entered Mines 2865 | -10/Mines | Learned 2 Materials zone layouts 2879 | -10/Mines | Discovered new exit (range 13) 2928 | -10/Mines | Found the Drone Emporium 2942 | -10/Mines | Found Prototype Device 3184 | -10/Mines | Deemed a non-threat by the Exiles lab entrance 3184 | -10/Mines | Discovered new exit (range 5) 3249 | -10/Mines | Discovered new exit (range 10) 3252 | -10/Mines | Learned location of Storage (-9) 3495 | -10/Mines | Entered Exiles 3551 | -10/Exiles | Met 8R-AWN 3594 | -10/Exiles | Met EX-HEX 3666 | -10/Exiles | Met EX-BIN 3697 | -10/Exiles | Met EX-DEC 3707 | -10/Exiles | Learned location of Zion (-6) 3951 | -10/Exiles | Discovered new exit (range 11) 3973 | -10/Exiles | Entered Mines 3998 | -9/Mines | Met a Derelict bent on vengeance 4041 | -9/Mines | Discovered new exit (range 8) 4067 | -9/Mines | Assisted by bots powering up and referring to "LRC-V3" 4098 | -9/Mines | Learned location of 1 exit from Lower Caves 4265 | -9/Mines | Assembled infested the area 4292 | -9/Mines | Core integrity fell below 50% 4298 | -9/Mines | Core integrity fell below 20% 4316 | -9/Mines | Lost 3 allies 4319 | -9/Mines | Destroyed by D-53 Grenadier with Mini Grenade Launcher Last Messages --------------- 04291_ The unstable cave ceiling collapses. 04291_ Lgt. EM Pulse Cannon destroyed. 04295_ The unstable cave ceiling collapses. 04295_ Lgt. Treads destroyed. 04295_ Heat Sink destroyed. 04297_ Lgt. Ion Engine destroyed. 04297_ D-53 Grenadier knocked back. 04297_ D-53 Grenadier destroyed. 04297_ R-06 Scavenger collects Mni. Grenade Launcher. 04300_ The unstable cave ceiling collapses. 04303_ K-01 Serf collects debris. 04305_ Lgt. Treads destroyed. 04306_ K-01 Serf collects debris. 04309_ The unstable cave ceiling collapses. 04310_ K-01 Serf collects debris. 04311_ The unstable cave ceiling collapses. 04313_ K-01 Serf collects debris. 04316_ The unstable cave ceiling collapses. 04317_ K-01 Serf collects debris. 04319_ The unstable cave ceiling collapses. Map ----- +----------------------------------------------------+ | | | | | ?????????????????????????????????????????????????? | | ?????????????????????????????????????????????????? | | ?????????####??????????????????#####?????????????? | | ########## ###????????????????# #?????????????? | | # ##???????????????# #?????????????? | | # ###### ########????????# #?????????????? | | # #????## ##?????### ##????????????? | | # #?????### #?????# #????????????? | | #???????### ####### #????????????? | | #?????????## ## < #????????????? | | ! ##??????????####### ####### #????????????? | | ##???????????????# #?????# #????????????? | | ##??????????????# #?????# #????######### | | #??????????????# #?????##### ##????# | | #?????????????# ########### ####### ####### | | ## #????????????# ## #?????? | | ##?# ##????????????################### ## #?????? | | ????###???????????????????????????????# ##|#?????? | | ??????????????# ??????#######?####????# ##[#?????? | | ??????????????# ???## ### ###??# ##%#?????? | | ??????????????# ## # # ;##?# ##|#?????? | | ???????????????# ### ## #?????? | | ????????????????# % %## #?????? | | ????????????????????# @ ! ;# ####?????? | | ????????????????# %%*;;t#????????? | | ????????????????# # d k % ;????????? | | ????????????????## ## #????????? | | ?????????????????#???## %####????????? | | ??????????????????????## # ##???????????? | | ??????????????????????# ##########????????????? | | ?????????????????????# #?????????????????????? | | ???????????????????? ##?????????????????????? | | ?????????????????? ##???????????????????????? | | ?????????????????# ##?????????????????????????? | | ?????????????????# #???????????????????????????? | | ????????????????# #????????????????????????????? | | ???????????????? ?????????????????????????????? | | ???????????????? ??????????????????????????????? | | ?????????????????????????????????????????????????? | | ?????????????????????????????????????????????????? | | ?????????????????????????????????????????????????? | | ?????????????????????????????????????????????????? | | ?????????????????????????????????????????????????? | | ?????????????????????????????????????????????????? | | ?????????????????????????????????????????????????? | | ?????????????????????????????????????????????????? | | ?????????????????????????????????????????????????? | | ?????????????????????????????????????????????????? | +----------------------------------------------------+ Best States ------------- Heat Dissipation 35 Energy Generation 10 Energy Capacity 125 Matter Stores 300 Matter Capacity 300 Sight Range 16 Terrain Scan Density 10 Evasion (%) 40 Targeting Accuracy 5 Recoil Reduction 2 Item Schematics ----------------- None Robot Schematics ------------------ None Fabricated ------------ Nothing Alien Tech Used ----------------- None Achievements -------------- None Challenges ------------ None Game ------ Seed MasterSniperReactor Manual? 0 Play Time 00:22:26 Cumulative 118.5 hours Start 2024.07.07 @ 21:39:40 End 2024.07.07 @ 22:02:05 Sessions 1 Manual Loads 0 Difficulty Rogue Special Mode None Game No. 59 Rogue 59 Adventurer 0 Explorer 0 Win Type - Total 2 Types 2/0/0/0/0/0/0/0/0 Lore% 57 Gallery% 62 Achievement% 51 Wizard Run 0 Options --------- Layout 0 ASCII 0 Keyboard 0 Movement Mouse Keybinds 0 Fullscreen 2 Font 18/SmallcapsGlow Map View 76x50 Zoom Use 0% Tactical HUD 1 Map Filters NONE Filters NONE Steam 1 RUN: 8473dead-2ff7-479a-b6f5-f046b179276d